lending/lending_fUSD_20251022
["ID","MTS","AMOUNT","RATE_DAILY","PERIOD"]
[392059503,1761131446277,-500.0,0.00033999,120]
[392059505,1761131446287,-776.74,0.00033999,120]
[392059506,1761131446298,-500.0,0.00033999,2]
[392059509,1761131446307,-14639.73182002,0.00034,5]
[392059530,1761131446567,-63463.43317528,0.00034,5]
[392059532,1761131446578,-150.0,0.00034,30]
[392059534,1761131446587,-20867.17478264,0.00034,120]
[392059566,1761131447114,-500.0,0.00031998,2]
[392059567,1761131447124,-500.0,0.00031998,2]
[392059568,1761131447133,-500.0,0.00031998,2]
[392059569,1761131447142,-500.0,0.00031998,2]
[392059570,1761131447151,-493.56763821,0.00031998,2]
[392059571,1761131447160,-500.0,0.00031998,2]
[392059572,1761131447169,-500.0,0.00031998,2]
[392059573,1761131447179,-353.11630141,0.00031998,2]
[392059574,1761131447188,-500.0,0.00031998,2]
[392059575,1761131447199,-500.0,0.00031998,2]
[392059576,1761131447209,-516.87569625,0.00031998,2]
[392059577,1761131447218,-500.0,0.00031998,2]
[392059578,1761131447226,-500.0,0.00031998,2]
[392059579,1761131447236,-500.0,0.00031998,2]
[392059580,1761131447246,-500.0,0.00031998,2]
[392059581,1761131447255,-500.0,0.00031998,2]
[392059582,1761131447264,-500.0,0.00031998,2]
[392059583,1761131447274,-500.0,0.00031998,2]
[392059584,1761131447283,-500.0,0.00031998,2]
[392059585,1761131447293,-500.0,0.00031998,2]
[392059586,1761131447303,-500.0,0.00031998,2]
[392059587,1761131447313,-500.0,0.00031998,2]
[392059588,1761131447323,-436.52742621,0.00031998,2]
[392059589,1761131447335,-63.47257379,0.00031998,2]
[392059590,1761131447344,-500.0,0.00031998,2]
[392059591,1761131447354,-188.62756315,0.00031998,2]
[392059592,1761131447364,-311.37243685,0.00031998,2]
[392059593,1761131447374,-500.0,0.00031998,2]
[392059594,1761131447383,-500.0,0.00031998,2]
[392059595,1761131447394,-500.0,0.00031998,2]
[392059596,1761131447404,-500.0,0.00031998,2]
[392059597,1761131447414,-640.349921,0.0003289,30]
[392059598,1761131447423,-640.349921,0.000329,30]
[392059599,1761131447433,-640.349921,0.00032912,30]
[392059600,1761131447445,-2745.55493836,0.00034,120]
[392059601,1761131447457,-2464.20969,0.00034,120]
[392059602,1761131447469,-2460.27884456,0.00034,120]
[392059603,1761131447501,-2194.98624638,0.00034,120]
[392059604,1761131447513,-4458.01213198,0.00034,120]
[392059605,1761131447524,-7525.7,0.00034,120]
[392059606,1761131447540,-10744.0,0.00034,120]
[392059607,1761131447553,-3216.5749,0.00034,120]
[392059608,1761131447564,-443.64078742,0.00034,120]
[392059609,1761131669506,-500.0,0.00024932,2]
[392059610,1761131669534,-300.0,0.0002904,120]
[392059611,1761131669558,-300.0,0.00029199,120]
[392059612,1761131669581,-100.16414837,0.000299,5]
[392059613,1761131671456,-166.5703548,0.000299,5]
[392059614,1761131863125,-300.0,0.0002,2]
[392059615,1761131991787,182.5541626,0.0002739,120]
[392059624,1761132308136,8420.64519824,0.00015,2]
[392059625,1761132308163,15000.0,0.00015,2]
[392059626,1761132308187,15000.0,0.00015,2]
[392059627,1761132308213,15000.0,0.00015,2]
[392059628,1761132308237,15000.0,0.00015,2]
[392059629,1761132308260,15000.0,0.00015,2]
[392059630,1761132308284,15000.0,0.00015,2]
[392059631,1761132308308,15000.0,0.00015,2]
[392059632,1761132308331,15000.0,0.00015,2]
[392059633,1761132308356,15000.0,0.00015,2]
[392059634,1761132308378,15000.0,0.00015,2]
[392059635,1761132308402,15000.0,0.00015,2]
[392059636,1761132308424,15000.0,0.00015,2]
[392059637,1761132308446,15000.0,0.00015,2]
[392059638,1761132308471,15000.0,0.00015,2]
[392059639,1761132308493,15000.0,0.00015,2]
[392059640,1761132308515,15000.0,0.00015,2]
[392059641,1761132308540,15000.0,0.00015,2]
[392059642,1761132308564,15000.0,0.00015,2]
[392059643,1761132308749,15000.0,0.00015,2]
[392059644,1761132308773,15000.0,0.00015,2]
[392059645,1761132308796,15000.0,0.00015,2]
[392059646,1761132308819,15000.0,0.00015,2]
[392059647,1761132308855,14200.9306585,0.00015,2]
[392059658,1761132428311,3442.91897291,0.00027397,120]
[392059659,1761132478962,799.0693415,0.00015,2]
[392059660,1761132478985,15000.0,0.00015,2]
[392059661,1761132479007,15000.0,0.00015,2]
[392059662,1761132479029,15000.0,0.00015,2]
[392059663,1761132479050,15000.0,0.00015,2]
[392059664,1761132479071,9068.68983795,0.00015,2]
[392059680,1761132631490,-162.58,0.00015802,2]
[392059681,1761132631500,-5000.00901359,0.000162,5]
[392059682,1761132631509,-158.88883048,0.00016534,2]
[392059683,1761132631521,-162.58,0.00016634,2]
[392059684,1761132631530,-162.58,0.00017465,2]
[392059685,1761132631539,-162.58,0.00018297,2]
[392059686,1761132631551,-162.58,0.00019129,2]
[392059687,1761132631561,-1667.4,0.0001995,15]
[392059688,1761132631571,-162.58,0.00019961,2]
[392059689,1761132631583,-1200.0,0.00019998,2]
[392059690,1761132631594,-212.0,0.00019999,2]
[392059691,1761132631603,-300.0,0.00019999,2]
[392059692,1761132631615,-212.08325967,0.0002,2]
[392059693,1761132631624,-9560.31034301,0.0002,2]
[392059694,1761132631634,-162.58,0.00020792,2]
[392059695,1761132631644,-251.1187865,0.0002088,2]
[392059696,1761132631653,-162.58,0.00021624,2]
[392059697,1761132631662,-400.0,0.0002188,2]
[392059698,1761132631672,-162.58,0.00022456,2]
[392059699,1761132631681,-162.58,0.00023287,2]
[392059700,1761132631691,-312.89,0.00023368,2]
[392059701,1761132631701,-500.0,0.00024,2]
[392059702,1761132631710,-162.58,0.00024119,2]
[392059703,1761132631720,-500.0,0.00024932,2]
[392059704,1761132631729,-162.58,0.00024951,2]
[392059705,1761132631738,-500.0,0.00025,2]
[392059706,1761132631748,-162.4,0.00025,2]
[392059707,1761132631758,-1861.33809415,0.00025,2]
[392059708,1761132631767,-300.0,0.00025782,2]
[392059709,1761132631778,-162.58,0.00025782,2]
[392059710,1761132631789,-162.58,0.00026614,2]
[392059711,1761132631799,-500.0,0.00027,3]
[392059712,1761132631808,-500.0,0.000272,3]
[392059713,1761132631818,-162.58,0.00027446,2]
[392059714,1761132631827,-4187.0,0.000276,5]
[392059715,1761132631836,-162.58,0.00028278,2]
[392059716,1761132631845,-161.52,0.00029055,2]
[392059717,1761132631855,-162.58,0.00029109,2]
[392059718,1761132631864,-150.99,0.00029815,2]
[392059719,1761132631874,-29765.64,0.00029815,10]
[392059720,1761132631883,-4153.73,0.00029815,2]
[392059721,1761132631892,-1713.67020679,0.00029815,2]
[392059723,1761132631920,-716.07979321,0.00029815,2]
[392059724,1761132631930,-162.58,0.00029941,2]
[392059725,1761132631950,-1195.15,0.00029946,2]
[392059726,1761132631960,-500.0,0.0003,14]
[392059727,1761132631975,-228.83,0.00030078,2]
[392059728,1761132631985,-307.10405025,0.0003013,2]
[392059729,1761132631994,-1055.80222709,0.0003013,2]
[392059730,1761132632004,-654.17879168,0.0003013,2]
[392059731,1761132632016,-15.18124763,0.0003013,2]
[392059732,1761132632026,-284.87,0.00030137,30]
[392059733,1761132632035,-164.91205476,0.00030137,5]
[392059734,1761132632045,-166.66,0.00030443,30]
[392059735,1761132632054,-162.58,0.00030773,2]
[392059736,1761132632064,-150.0,0.00030797,7]
[392059737,1761132632073,-150.0,0.00030797,7]
[392059738,1761132632084,-150.0,0.00030797,7]
[392059739,1761132632094,-150.0,0.00030797,7]
[392059740,1761132632104,-150.0,0.00030797,7]
[392059741,1761132632113,-153.31134626,0.00030797,7]
[392059742,1761132632124,-274.98427392,0.00030797,7]
[392059743,1761132632134,-135.83016289,0.0003085,5]
[392059744,1761132632162,-364.16983711,0.0003085,5]
[392059745,1761132632173,-151.0,0.00030885,7]
[392059746,1761132632183,-500.0,0.00030887,2]
[392059747,1761132632194,-500.0,0.00030887,2]
[392059748,1761132632203,-500.0,0.00030887,2]
[392059749,1761132632214,-193.84476767,0.00030887,2]
[392059750,1761132632226,-500.0,0.00030887,2]
[392059751,1761132632235,-500.0,0.00030887,2]
[392059752,1761132632245,-226.64727934,0.00030887,2]
[392059753,1761132632254,-687.13251553,0.00030888,60]
[392059754,1761132632266,-1300.73746,0.00030888,60]
[392059755,1761132632279,-738.43234202,0.00030888,60]
[392059757,1761132637481,-384.94150132,0.000225,2]
[392059758,1761132637493,-115.05849868,0.000225,2]
[392059759,1761132637502,-179.20012952,0.00030888,60]
[392059760,1761132637748,-5732.91549215,0.00030888,60]
[392059763,1761132637765,-383.8086,0.00030888,60]
[392059967,1761132639853,-0.0028916,0.00030888,60]
[392059970,1761132639875,-467.05795005,0.00030888,60]
[392059973,1761132639886,-1218.72785427,0.00030888,60]
[392060574,1761132645769,-500.0,0.00030887,2]
[392060576,1761132645779,-147.09149702,0.00030888,60]
[392060616,1761132667357,1021.0,0.00027397,120]
[392060617,1761132888527,782.77545111,0.00027397,120]
[392060619,1761133317071,228.77760116,0.00027,120]
[392060664,1761133831668,-151.0,0.000225,2]
[392060665,1761133831677,-192.00799701,0.00023048,2]
[392060666,1761133831686,-1597.0,0.000234,3]
[392060667,1761133831695,-2599.505027,0.00023581,2]
[392060668,1761133831704,-448.55979883,0.000237,2]
[392060669,1761133831713,-599.64834105,0.00024,5]
[392060670,1761133831724,-4913.35165895,0.00024,5]
[392060671,1761133831733,-300.0,0.00024099,2]
[392060672,1761133831743,-1200.0,0.00024748,2]
[392060673,1761133831752,-4053.82471034,0.0002475,2]
[392060674,1761133831760,-250.0,0.0002475,2]
[392060675,1761133831769,-314.88474896,0.0002475,2]
[392060676,1761133831777,-2583.66082949,0.00026471,7]
[392060677,1761133831787,-625.0,0.0002685,3]
[392060678,1761133831795,-2865.99,0.0002685,2]
[392060679,1761133831805,-3266.44,0.0002685,2]
[392060680,1761133831814,-389.07,0.0002685,2]
[392060681,1761133831823,-451.0,0.00027952,2]
[392060682,1761133831832,-617.34881617,0.00028056,2]
[392060683,1761133831841,-1056.29307384,0.00028244,2]
[392060684,1761133831877,-394.93,0.00028244,2]
[392060685,1761133831888,-87.77692616,0.00028244,2]
[392060686,1761133831898,-729.53253314,0.00028627,2]
[392060714,1761133837582,-984.46746686,0.00028627,2]
[392060715,1761133837592,-1199.0,0.00028684,2]
[392060716,1761133837603,-1891.0,0.00028697,2]
[392060717,1761133837612,-2732.05,0.00029009,2]
[392060718,1761133837621,-9158.06,0.00029009,5]
[392060719,1761133837630,-2071.1,0.00029009,2]
[392060720,1761133837640,-1081.2,0.00029009,10]
[392060721,1761133837649,-2332.78,0.00029009,2]
[392060722,1761133837658,-611.52,0.00029312,120]
[392060723,1761133837667,-189.709,0.00029368,22]
[392060724,1761133837677,-737.519,0.00029368,22]
[392060725,1761133837687,-1852.42,0.00029435,2]
[392060726,1761133837697,-2000.0,0.000296,2]
[392060727,1761133837707,-834.53002785,0.00029864,2]
[392060728,1761133837716,-247.40525326,0.00029999,2]
[392060729,1761133837727,-119290.74826139,0.0003,2]
[392060730,1761133837737,-319.36029358,0.0003,14]
[392060731,1761133837747,-170.69279879,0.0003006,2]
[392060732,1761133837757,-162.86370135,0.0003006,2]
[392060733,1761133837767,-206.71302939,0.0003006,2]
[392060734,1761133837776,-199.96141613,0.0003006,2]
[392060735,1761133837785,-208.89321798,0.0003006,2]
[392060736,1761133837794,-403.99338113,0.0003006,2]
[392060738,1761133837804,-322.5098371,0.0003006,7]
[392060740,1761133837813,-859.1858921,0.00030061,2]
[392060742,1761133837822,-48297.3027086,0.00030061,2]
[392060743,1761133837832,-1891.204029,0.00030061,2]
[392060746,1761133837841,-1719.2730656,0.00030061,2]
[392060747,1761133837851,-1795.5659738,0.00030061,2]
[392060749,1761133837861,-12829.1977068,0.00030061,2]
[392060751,1761133837870,-3028.49518,0.00030061,2]
[392060753,1761133837879,-11629.2399509,0.00030061,2]
[392060755,1761133837889,-500.0,0.00030073,5]
[392060757,1761133837898,-500.0,0.00030073,5]
[392060759,1761133837907,-500.93807288,0.00030073,5]
[392060761,1761133837915,-250.0,0.00030148,2]
[392060763,1761133837922,-318.67,0.00030274,2]
[392060765,1761133837930,-500.0,0.0003041,2]
[392060768,1761133837940,-153.77657523,0.000306,7]
[392060771,1761133837949,-150.00000001,0.000306,7]
[392060774,1761133837958,-880.02351,0.00030887,2]
[392060776,1761133837967,-588.74,0.00030887,120]
[392060778,1761133837978,-27034.47840157,0.00030888,60]
[392060780,1761133837987,-200.0,0.00030888,2]
[392060782,1761133837997,-200.0,0.00030888,2]
[392060784,1761133838013,-5000.0,0.00031019,2]
[392060786,1761133838023,-2141.27861275,0.00031063,2]
[392060788,1761133838033,-166.66,0.00031084,30]
[392060790,1761133838042,-610.0,0.00031131,2]
[392060792,1761133838052,-17836.3061285,0.00031153,3]
[392060794,1761133838063,-151.411643,0.00031163,30]
[392060796,1761133838072,-250.138654,0.00031163,30]
[392060798,1761133838082,-216.492226,0.00031163,30]
[392060800,1761133838091,-216.492226,0.00031163,30]
[392060802,1761133838100,-216.492226,0.00031163,30]
[392060804,1761133838110,-216.492226,0.00031163,30]
[392060806,1761133838120,-1550.29892864,0.00031163,2]
[392060807,1761133838130,-500.0,0.00031163,2]
[392060808,1761133838139,-500.0,0.00031163,2]
[392060809,1761133838148,-500.0,0.00031163,2]
[392060810,1761133838158,-500.0,0.00031163,2]
[392060811,1761133838167,-500.0,0.00031163,2]
[392060812,1761133838177,-1000.0,0.00031163,2]
[392060813,1761133838186,-500.0,0.00031163,2]
[392060814,1761133838196,-250.0,0.00031163,2]
[392060815,1761133838206,-500.0,0.00031163,2]
[392060816,1761133838216,-250.0,0.00031163,2]
[392060818,1761133838226,-1000.0,0.00031163,2]
[392060820,1761133838235,-500.0,0.00031163,2]
[392060822,1761133838245,-500.0,0.00031163,2]
[392060824,1761133838258,-500.0,0.00031163,2]
[392060826,1761133838268,-250.0,0.00031163,2]
[392060828,1761133838277,-1000.0,0.00031163,2]
[392060830,1761133838287,-500.0,0.00031163,2]
[392060832,1761133838297,-1000.0,0.00031163,2]
[392060834,1761133838307,-434.21554519,0.00031163,2]
[392060836,1761133838316,-250.0,0.00031163,2]
[392060838,1761133838327,-496.19095782,0.00031163,2]
[392060839,1761133838338,-1000.0,0.00031163,2]
[392060841,1761133838348,-250.0,0.00031163,2]
[392060843,1761133838357,-1000.0,0.00031163,2]
[392060845,1761133838367,-250.0,0.00031163,2]
[392060847,1761133838376,-1000.0,0.00031163,2]
[392060849,1761133838385,-1000.0,0.00031163,2]
[392060851,1761133838395,-250.0,0.00031163,2]
[392060853,1761133838405,-1000.0,0.00031163,2]
[392060855,1761133838415,-1000.0,0.00031163,2]
[392060857,1761133838425,-1000.0,0.00031163,2]
[392060860,1761133838435,-250.0,0.00031163,2]
[392060861,1761133838448,-1000.0,0.00031163,2]
[392060864,1761133838457,-1000.0,0.00031163,2]
[392060866,1761133838467,-250.0,0.00031163,2]
[392060867,1761133838476,-1000.0,0.00031163,2]
[392060869,1761133838486,-1000.0,0.00031163,2]
[392060871,1761133838496,-250.0,0.00031163,2]
[392060873,1761133838507,-1000.0,0.00031163,2]
[392060875,1761133838517,-250.0,0.00031163,2]
[392060877,1761133838528,-1000.0,0.00031163,2]
[392060879,1761133838539,-1000.0,0.00031163,2]
[392060882,1761133838550,-1000.0,0.00031163,2]
[392060884,1761133838560,-1000.0,0.00031163,2]
[392060886,1761133838570,-1000.0,0.00031163,2]
[392060888,1761133838579,-1000.0,0.00031163,2]
[392060890,1761133838589,-1000.0,0.00031163,2]
[392060892,1761133838598,-1000.0,0.00031163,2]
[392060894,1761133838607,-1000.0,0.00031163,2]
[392060895,1761133838617,-1000.0,0.00031163,2]
[392060898,1761133838627,-1000.0,0.00031163,2]
[392060900,1761133838636,-1000.0,0.00031163,2]
[392060901,1761133838645,-1000.0,0.00031163,2]
[392060903,1761133838655,-1000.0,0.00031163,2]
[392060905,1761133838664,-1000.0,0.00031163,2]
[392060908,1761133838673,-1000.0,0.00031163,2]
[392060910,1761133838683,-250.0,0.00031163,2]
[392060912,1761133838692,-250.0,0.00031163,2]
[392060914,1761133838701,-250.0,0.00031163,2]
[392060915,1761133838711,-250.0,0.00031163,2]
[392060918,1761133838721,-250.0,0.00031163,2]
[392060919,1761133838731,-250.0,0.00031163,2]
[392060921,1761133838740,-250.0,0.00031163,2]
[392060924,1761133838750,-250.0,0.00031163,2]
[392060925,1761133838759,-250.0,0.00031163,2]
[392060928,1761133838769,-250.0,0.00031163,2]
[392060929,1761133838778,-250.0,0.00031163,2]
[392060931,1761133838787,-200.0,0.00031197,2]
[392060933,1761133838796,-2141.27861275,0.00031445,2]
[392060935,1761133838805,-163.57818571,0.00031504,2]
[392060937,1761133838815,-162.58,0.00031604,2]
[392060939,1761133838824,-544.297433,0.00031665,30]
[392060941,1761133838833,-544.297433,0.00031665,30]
[392060943,1761133838842,-151.0,0.00031665,30]
[392060945,1761133838851,-8918.15306426,0.00031699,3]
[392060947,1761133838860,-8918.15306426,0.00031709,3]
[392060949,1761133838869,-17499.43,0.00031719,2]
[392060951,1761133838878,-166.66,0.00031725,30]
[392060953,1761133838888,-2141.27861275,0.00031828,2]
[392060955,1761133838898,-8918.15306426,0.00031943,3]
[392060957,1761133838907,-8918.15306426,0.00031943,3]
[392060959,1761133838918,-233.94,0.00031944,7]
[392060961,1761133838929,-26754.4591928,0.00031953,3]
[392060963,1761133838937,-544.297433,0.00031953,30]
[392060965,1761133838947,-544.297433,0.00031953,30]
[392060967,1761133838957,-159.013359,0.00031953,30]
[392060969,1761133838966,-216.492226,0.00031953,30]
[392060971,1761133838975,-216.492226,0.00031953,30]
[392060973,1761133838985,-216.492226,0.00031953,30]
[392060975,1761133838995,-216.492226,0.00031953,30]
[392060977,1761133839005,-30250.97116165,0.00031963,2]
[392060979,1761133839016,-25056.61,0.00031963,2]
[392060981,1761133839025,-151.078084,0.00031963,5]
[392060983,1761133839036,-1000.0,0.00032,2]
[392060985,1761133839046,-1000.0,0.00032,4]
[392060987,1761133839056,-375.46,0.00032045,2]
[392060989,1761133839066,-1003.0,0.000321,2]
[392060991,1761133839075,-163.57818567,0.00032104,2]
[392060993,1761133839085,-216.492226,0.00032147,30]
[392060995,1761133839095,-216.492226,0.00032147,30]
[392060997,1761133839104,-216.492226,0.00032147,30]
[392060999,1761133839114,-216.492226,0.00032147,30]
[392061001,1761133839124,-1500.0,0.00032179,120]
[392061003,1761133839135,-8918.15306426,0.0003218,3]
[392061005,1761133839146,-4245.29,0.0003219,2]
[392061007,1761133839155,-666.0,0.00032199,3]
[392061009,1761133839166,-2141.27861275,0.0003221,2]
[392061011,1761133839177,-623.42842362,0.00032229,2]
[392061014,1761133839187,-1583.25,0.00032306,2]
[392061016,1761133839197,-385.04,0.00032343,2]
[392061018,1761133839207,-544.297433,0.00032353,30]
[392061020,1761133839216,-544.297433,0.00032353,30]
[392061022,1761133839226,-1596.0,0.00032353,2]
[392061024,1761133839236,-166.66,0.00032366,30]
[392061026,1761133839246,-300.0,0.00032375,5]
[392061028,1761133839257,-300.0,0.00032375,5]
[392061030,1761133839267,-300.0,0.00032375,5]
[392061032,1761133839277,-317.335403,0.00032375,5]
[392061034,1761133839287,-2005.26,0.000325,32]
[392061036,1761133839296,-176.26,0.0003256,2]
[392061038,1761133839306,-176.26,0.0003256,2]
[392061040,1761133839315,-176.26,0.0003256,2]
[392061041,1761133839325,-8918.15306426,0.0003258,3]
[392061043,1761133839335,-500.0,0.00032589,2]
[392061046,1761133839345,-2141.27861275,0.00032593,2]
[392061048,1761133839355,-1000.0,0.000326,7]
[392061050,1761133839364,-1355.0,0.00032626,2]
[392061052,1761133839374,-205.0,0.00032636,2]
[392061053,1761133839384,-500.0,0.00032644,7]
[392061055,1761133839393,-500.0,0.00032644,7]
[392061058,1761133839403,-500.0,0.00032644,7]
[392061060,1761133839413,-2751.0,0.0003269,120]
[392061062,1761133839423,-1000.0,0.000327,4]
[392061064,1761133839433,-163.57818567,0.00032704,2]
[392061066,1761133839444,-8918.15306426,0.00032725,3]
[392061068,1761133839456,-197.0,0.00032748,2]
[392061070,1761133839465,-205.0,0.00032833,2]
[392061072,1761133839475,-1355.0,0.00032837,2]
[392061074,1761133839484,-197.0,0.00032845,2]
[392061076,1761133839495,-151.0,0.00032877,120]
[392061078,1761133839505,-205.0,0.00032886,2]
[392061080,1761133839515,-880.02352,0.00032887,2]
[392061082,1761133839528,-1355.0,0.00032934,2]
[392061084,1761133839538,-168.0,0.00032945,2]
[392061086,1761133839547,-611.52,0.00032976,120]
[392061088,1761133839557,-3035.0930775,0.00033,3]
[392061091,1761133839567,-504.11578564,0.00033,30]
[392061093,1761133839577,-833770.9587,0.00033,2]
[392061095,1761133839586,-166.66,0.00033007,30]
[392061097,1761133839596,-197.0,0.00033022,2]
[392061099,1761133839606,-168.0,0.0003304,2]
[392061101,1761133839615,-13335.765513,0.00033054,3]
[392061104,1761133839625,-8918.15306426,0.00033055,3]
[392061106,1761133839635,-544.297433,0.00033064,30]
[392061108,1761133839645,-544.297433,0.00033064,30]
[392061110,1761133839654,-544.297433,0.00033064,30]
[392061112,1761133839664,-17836.3061285,0.00033065,3]
[392061114,1761133839673,-13335.765513,0.00033065,3]
[392061117,1761133839683,-216.492226,0.00033065,30]
[392061120,1761133839692,-216.492226,0.00033065,30]
[392061122,1761133839701,-216.492226,0.00033065,30]
[392061125,1761133839710,-216.492226,0.00033065,30]
[392061128,1761133839719,-500.0,0.00033074,120]
[392061131,1761133839730,-20130.09,0.00033075,37]
[392061133,1761133839739,-1000.0,0.00033075,2]
[392061136,1761133839748,-1000.0,0.00033075,2]
[392061139,1761133839757,-1000.0,0.00033075,2]
[392061141,1761133839767,-1000.0,0.00033075,2]
[392061144,1761133839776,-231.0,0.00033075,2]
[392061147,1761133839786,-925.49711897,0.00033077,2]
[392061149,1761133839795,-168.0,0.00033178,2]
[392061152,1761133839805,-205.0,0.00033282,2]
[392061154,1761133839814,-2000.0,0.000333,2]
[392061176,1761133839947,-150.0,0.000333,5]
[392061178,1761133839957,-163.57818567,0.00033305,2]
[392061180,1761133839966,-150.0,0.00033371,2]
[392061182,1761133839975,-150.0,0.00033371,2]
[392061184,1761133839984,-150.0,0.00033371,2]
[392061186,1761133839993,-500.0,0.00033371,2]
[392061187,1761133840003,-150.0,0.00033371,2]
[392061190,1761133840012,-150.0,0.00033426,2]
[392061191,1761133840021,-500.0,0.00033426,2]
[392061193,1761133840030,-13335.765513,0.0003343,3]
[392061195,1761133840039,-190.41,0.0003344,2]
[392061197,1761133840049,-8918.15306426,0.00033444,3]
[392061200,1761133840059,-8918.15306426,0.00033464,3]
[392061201,1761133840069,-544.297433,0.00033474,30]
[392061203,1761133840079,-544.297433,0.00033474,30]
[392061205,1761133840089,-544.297424,0.00033474,30]
[392061207,1761133840099,-200.0,0.00033481,2]
[392061209,1761133840109,-514.30865827,0.00033481,2]
[392061211,1761133840120,-154.27740032,0.00033492,7]
[392061212,1761133840129,-596.56438422,0.000335,120]
[392061213,1761133840139,-13335.765513,0.00033552,3]
[392061214,1761133840148,-179.0,0.00033561,2]
[392061215,1761133840158,-17836.3061285,0.00033562,3]
[392061216,1761133840167,-13335.765513,0.00033562,3]
[392061217,1761133840176,-588.74,0.00033571,120]
[392061218,1761133840185,-786.0,0.00033572,2]
[392061219,1761133840194,-2050.0,0.00033572,2]
[392061221,1761133840203,-3410.0,0.00033572,2]
[392061223,1761133840212,-662.706,0.00033572,2]
[392061225,1761133840221,-705.116,0.00033572,2]
[392061227,1761133840230,-1546.0,0.00033572,2]
[392061229,1761133840239,-1309.0,0.00033572,2]
[392061231,1761133840249,-1269.0,0.00033572,2]
[392061233,1761133840258,-6440.0,0.00033572,2]
[392061236,1761133840268,-557.0,0.00033572,2]
[392061237,1761133840277,-712.229,0.00033572,2]
[392061239,1761133840285,-2592.0,0.00033572,2]
[392061241,1761133840295,-216.492226,0.00033572,30]
[392061243,1761133840304,-216.492226,0.00033572,30]
[392061246,1761133840314,-216.492226,0.00033572,30]
[392061247,1761133840323,-216.492218,0.00033572,30]
[392061249,1761133840332,-1870.76115268,0.00033598,6]
[392061251,1761133840341,-168.0,0.00033629,2]
[392061253,1761133840350,-251.0,0.00033648,5]
[392061255,1761133840359,-166.66,0.00033648,30]
[392061257,1761133840367,-13335.765513,0.00033749,3]
[392061259,1761133840376,-8918.15306426,0.00033758,3]
[392061261,1761133840385,-150.0,0.00033769,2]
[392061263,1761133840394,-8918.15306426,0.00033834,3]
[392061265,1761133840404,-13335.765513,0.00033834,3]
[392061267,1761133840413,-13335.765513,0.0003384,3]
[392061269,1761133840422,-35672.612257,0.00033843,3]
[392061272,1761133840432,-250.0,0.00033848,5]
[392061273,1761133840441,-8918.15306426,0.0003385,3]
[392061275,1761133840455,-500.0,0.00033853,2]
[392061277,1761133840464,-8918.15306426,0.00033854,3]
[392061279,1761133840473,-179.0,0.00033854,2]
[392061282,1761133840482,-8918.15306426,0.00033863,3]
[392061284,1761133840495,-13335.765513,0.00033864,3]
[392061286,1761133840504,-3506.0,0.0003387,2]
[392061287,1761133840513,-10776.5848881,0.00033874,2]
[392061290,1761133840527,-792.02,0.0003388,2]
[392061292,1761133840536,-5000.0,0.0003389,2]
[392061294,1761133840545,-2862.5809389,0.00033892,2]
[392061296,1761133840554,-2594.8341726,0.00033892,2]
[392061298,1761133840564,-531.08259299,0.00033899,2]
[392061300,1761133840573,-163.57818567,0.00033905,2]
[392061302,1761133840581,-588.74,0.00033979,120]
[392061303,1761133840590,-675.7486145,0.00033986,2]
[392061305,1761133840599,-1000.0,0.00033988,2]
[392061308,1761133840609,-500.0,0.00033989,120]